bitfinex-derivatives/quotes_BTCF0:USTF0_20260131
["timestamp","ask_amount","ask_price","bid_price","bid_amount"]
[1769899233246,0.012799,78231.0,78215.0,0.2810062]
[1769899235150,0.10368,78235.0,78220.0,0.2810062]
[1769899235748,0.116479,78235.0,78220.0,0.2810062]
[1769899236146,0.10368,78235.0,78223.0,0.2810062]
[1769899236451,0.012798,78239.0,78223.0,0.2810062]
[1769899236845,0.012798,78238.0,78223.0,0.2810062]
[1769899237150,0.012799,78236.0,78223.0,0.2810062]
[1769899239050,0.012798,78239.0,78223.0,0.2810062]
[1769899239252,0.012798,78237.0,78223.0,0.2810062]
[1769899239650,0.012799,78235.0,78223.0,0.2810062]
[1769899240150,0.29088691,78239.0,78218.0,0.27565707]
[1769899240350,0.0128,78229.0,78217.0,0.10368]
[1769899240546,0.29088691,78225.0,78210.0,0.26587199]
[1769899241148,0.012801,78220.0,78210.0,0.26587199]
[1769899241354,0.012801,78219.0,78210.0,0.26587199]
[1769899241549,0.012801,78219.0,78209.0,0.17733004]
[1769899241755,0.012801,78219.0,78209.0,0.45249523]
[1769899242559,0.28985297,78229.0,78209.0,0.45249523]
[1769899242760,0.012801,78221.0,78220.0,4e-08]
[1769899242960,0.012801,78219.0,78211.0,0.17733004]
[1769899243160,0.012801,78219.0,78209.0,0.45249523]
[1769899243351,0.012801,78219.0,78210.0,0.27516519]
[1769899247656,0.0128,78228.0,78210.0,0.27516519]
[1769899247657,0.0128,78226.0,78210.0,0.27516519]
[1769899247862,0.16591939,78225.0,78210.0,0.27516519]
[1769899248062,0.16591939,78225.0,78210.0,0.17733004]
[1769899248063,0.012802,78217.0,78210.0,0.17733004]
[1769899251866,0.28985297,78225.0,78210.0,0.17733004]
[1769899252061,0.012802,78219.0,78210.0,0.17733004]
[1769899252262,0.012802,78217.0,78210.0,0.17733004]
[1769899256067,0.012802,78217.0,78208.0,0.27516519]
[1769899256265,0.012802,78216.0,78208.0,0.27516519]
[1769899257067,0.012801,78224.0,78208.0,0.27516519]
[1769899257371,0.16999027,78223.0,78208.0,0.27516519]
[1769899257574,0.012802,78215.0,78208.0,0.27516519]
[1769899257967,0.012802,78217.0,78208.0,0.27516519]
[1769899258163,0.30265397,78224.0,78207.0,0.17733004]
[1769899258365,0.012802,78215.0,78207.0,0.45249523]
[1769899258562,0.012802,78217.0,78208.0,0.27516519]
[1769899258768,0.012802,78215.0,78208.0,0.27516519]
[1769899259474,0.012802,78214.0,78208.0,0.27516519]
[1769899259675,0.30265397,78224.0,78208.0,0.27516519]
[1769899259974,0.28985297,78222.0,78207.0,0.17733004]
[1769899260169,0.17002959,78223.0,78207.0,0.17733004]
[1769899260170,0.17002959,78221.0,78207.0,0.17733004]
[1769899260375,0.012802,78215.0,78208.0,0.27516519]
[1769899260575,0.012801,78224.0,78208.0,0.27516519]
[1769899260775,0.17002558,78223.0,78208.0,0.27516519]
[1769899260976,0.17002558,78222.0,78208.0,0.27516519]
[1769899261177,0.17002558,78221.0,78208.0,0.27516519]
[1769899261377,0.28985297,78219.0,78202.0,0.27516519]
[1769899261572,0.28985297,78219.0,78171.0,0.012809]
[1769899261573,0.28985297,78209.0,78186.0,0.10368]
[1769899261779,0.28985297,78206.0,78190.0,0.17733004]
[1769899261978,0.012805,78200.0,78190.0,0.17733004]
[1769899262178,0.012805,78198.0,78190.0,0.17733004]
[1769899262574,0.28985297,78205.0,78190.0,0.17733004]
[1769899262776,0.16996472,78204.0,78190.0,0.17733004]
[1769899262973,0.012805,78196.0,78190.0,0.17733004]
[1769899263177,0.012806,78194.0,78186.0,0.10368]
[1769899263782,0.012806,78194.0,78181.0,0.27516519]
[1769899266377,0.012807,78186.0,78180.0,0.17733004]
[1769899266581,0.012808,78182.0,78167.0,0.27516519]
[1769899266775,0.28985297,78185.0,78167.0,0.27516519]
[1769899267082,0.012809,78175.0,78167.0,0.27516519]
[1769899267583,0.012809,78175.0,78161.0,0.10368]
[1769899267584,0.012809,78175.0,78161.0,0.38556053]
[1769899267779,0.012809,78173.0,78162.0,0.28188053]
[1769899267987,0.012809,78173.0,78161.0,0.10368]
[1769899268284,0.19013904,78171.0,78157.0,0.28204324]
[1769899268879,0.01281,78169.0,78157.0,0.28204324]
[1769899271185,0.17733004,78171.0,78157.0,0.28204324]
[1769899271383,0.012812,78157.0,78148.0,0.10368]
[1769899271582,0.012812,78155.0,78135.0,0.012815]
[1769899271791,0.17733004,78145.0,78136.0,0.10368]
[1769899271991,0.17135363,78151.0,78136.0,0.10368]
[1769899272189,0.17733004,78146.0,78137.0,0.012815]
[1769899272485,0.0001208,78145.0,78136.0,0.10368]
[1769899273280,0.0001208,78145.0,78137.0,0.28188053]
[1769899274580,0.17733004,78146.0,78137.0,0.28188053]
[1769899275282,0.012814,78145.0,78131.0,0.28188053]
[1769899275480,0.17733004,78146.0,78131.0,0.28188053]
[1769899275786,0.17733004,78141.0,78131.0,0.28188053]
[1769899278578,0.012814,78140.0,78131.0,0.28188053]
[1769899278886,0.17733004,78141.0,78131.0,0.28188053]
[1769899282384,0.13163317,78141.0,78131.0,0.28188053]
[1769899282584,0.17733004,78141.0,78131.0,0.28188053]
[1769899283583,0.17733004,78141.0,78129.0,0.10372]
[1769899283790,0.19014404,78141.0,78129.0,0.10372]
[1769899283989,0.19014404,78141.0,78126.0,0.28188053]
[1769899284180,0.17733004,78136.0,78126.0,0.28188053]
[1769899284590,0.17733004,78136.0,78126.0,0.28183053]
[1769899285189,0.19014404,78140.0,78126.0,0.28183053]
[1769899285383,0.012815,78138.0,78126.0,0.28183053]
[1769899285893,0.012815,78138.0,78120.0,0.116577]
[1769899286089,0.17733004,78130.0,78120.0,0.116577]
[1769899286588,0.17733004,78130.0,78121.0,0.28188053]
[1769899287489,0.17733004,78130.0,78121.0,0.28183053]
[1769899291793,0.17733004,78130.0,78120.0,0.10376]
[1769899297294,0.17988257,78129.0,78120.0,0.10376]
[1769899297590,4.191e-05,78128.0,78120.0,0.10376]
[1769899299284,0.18003481,78127.0,78117.0,0.29501006]
[1769899299486,4.191e-05,78128.0,78117.0,0.29501006]
[1769899299696,0.18003441,78127.0,78117.0,0.29501006]
[1769899299896,4.191e-05,78128.0,78117.0,0.29501006]
[1769899300293,0.18013052,78127.0,78117.0,0.29501006]
[1769899300491,0.18013052,78126.0,78117.0,0.29501006]
[1769899300786,4.191e-05,78128.0,78117.0,0.29501006]
[1769899301096,0.18013052,78127.0,78117.0,0.29501006]
[1769899301295,0.18013052,78126.0,78117.0,0.29501006]
[1769899301495,0.18013052,78125.0,78117.0,0.29501006]
[1769899301697,4.191e-05,78128.0,78117.0,0.29501006]
[1769899302302,0.17273619,78127.0,78117.0,0.29501006]
[1769899302598,4.191e-05,78128.0,78117.0,0.29501006]
[1769899302796,0.17273718,78127.0,78117.0,0.29501006]
[1769899302996,4.191e-05,78128.0,78117.0,0.29501006]
[1769899303196,0.17273638,78127.0,78117.0,0.29501006]
[1769899303498,4.191e-05,78128.0,78117.0,0.29501006]
[1769899303692,0.17277033,78127.0,78117.0,0.29501006]
[1769899303892,4.191e-05,78128.0,78117.0,0.29501006]
[1769899304088,0.17276839,78127.0,78117.0,0.29501006]
[1769899304298,0.17280026,78126.0,78117.0,0.29501006]
[1769899304500,4.191e-05,78128.0,78117.0,0.29501006]
[1769899304798,0.172786,78127.0,78117.0,0.29501006]
[1769899305004,4.191e-05,78128.0,78117.0,0.29501006]
[1769899305195,0.17276486,78127.0,78117.0,0.29501006]
[1769899305499,0.17276486,78126.0,78117.0,0.29501006]
[1769899305700,4.191e-05,78128.0,78117.0,0.29501006]
[1769899307195,0.012816,78133.0,78117.0,0.29501006]
[1769899307498,0.168571,78132.0,78117.0,0.29501006]
[1769899307699,0.168571,78131.0,78117.0,0.29501006]
[1769899307896,0.168571,78130.0,78117.0,0.29501006]
[1769899310994,0.168571,78130.0,78113.0,0.30939246]
[1769899313298,0.46180788,78130.0,78113.0,0.30939246]
[1769899313501,0.46180788,78129.0,78113.0,0.012819]
[1769899313699,0.29323688,78127.0,78111.0,0.10376]
[1769899313904,0.29323688,78107.0,78076.0,0.1038]
[1769899314105,0.29323688,78102.0,78076.0,0.11832497]
[1769899314295,0.29323688,78102.0,78083.0,0.012824]
[1769899314491,0.29323688,78100.0,78080.0,0.012824]
[1769899314695,0.29323688,78098.0,78080.0,0.012824]
[1769899314896,0.29323688,78096.0,78076.0,0.1038]
[1769899315491,0.29323688,78096.0,78067.0,0.587]
[1769899315693,0.29323688,78096.0,78067.0,0.1038]
[1769899315893,0.29323688,78096.0,78069.0,0.29657346]
[1769899316303,0.29323688,78096.0,78076.0,0.012825]
[1769899316504,0.29323688,78096.0,78074.0,0.29657346]
[1769899316807,0.1282,78139.0,78067.0,0.1038]
[1769899316808,0.29323688,78132.0,78105.0,0.29657346]
[1769899316998,0.29323688,78130.0,78112.0,0.012819]
[1769899317197,0.16509907,78129.0,78110.0,0.29657346]
[1769899317500,0.55704,78131.0,78124.0,0.012817]
[1769899317501,0.1038,78131.0,78124.0,0.012817]
[1769899317898,0.1995,78151.0,78127.0,0.012816]
[1769899317899,0.49776,78137.0,78127.0,0.012816]
[1769899318199,0.49776,78141.0,78136.0,0.012815]
[1769899318394,0.29323688,78163.0,78128.0,0.29657346]
[1769899318598,0.29323688,78161.0,78130.0,0.29657346]
[1769899318795,0.16099971,78160.0,78151.0,0.012813]
[1769899319105,0.1038,78162.0,78156.0,0.00800758]
[1769899319299,0.1038,78161.0,78148.0,0.291758]
[1769899319494,0.1038,78162.0,78159.0,0.012811]
[1769899319702,0.1038,78178.0,78152.0,0.1038]
[1769899319901,0.1038,78179.0,78158.0,0.012811]
[1769899320095,0.1038,78182.0,78158.0,0.116611]
[1769899320412,0.1038,78185.0,78158.0,0.116611]
[1769899320706,0.29323688,78193.0,78179.0,0.012808]
[1769899321096,0.49812,78199.0,78186.0,0.012807]
[1769899321300,0.1038,78215.0,78192.0,0.012806]
[1769899321504,0.49816,78210.0,78181.0,0.29657346]
[1769899321705,0.1038,78212.0,78202.0,0.012804]
[1769899322005,0.012797,78244.0,78213.0,0.012802]
[1769899322303,0.36861361,78258.0,78203.0,0.29657346]
[1769899322304,0.60192,78243.0,78203.0,0.29657346]
[1769899322507,0.1038,78242.0,78211.0,0.29657346]
[1769899322696,8.8e-07,78241.0,78213.0,0.29657346]
[1769899323002,1.06224093,78257.0,78212.0,0.1038]
[1769899323003,0.10376,78243.0,78220.0,0.29657346]
[1769899323198,0.10376,78246.0,78222.0,0.29657346]
[1769899323600,0.44124,78248.0,78243.0,0.012797]
[1769899323805,0.10376,78255.0,78246.0,0.012797]
[1769899324001,0.47237361,78258.0,78246.0,0.012797]
[1769899325103,0.10376,78266.0,78254.0,0.012796]
[1769899325314,0.10376,78270.0,78254.0,0.012796]
[1769899325507,0.09876,78270.0,78259.0,0.012795]
[1769899325706,0.29323688,78281.0,78263.0,0.012794]
[1769899325707,0.10376,78277.0,78263.0,0.012794]
[1769899326005,0.10376,78277.0,78250.0,0.3374]
[1769899326006,0.10376,78277.0,78259.0,0.10376]
[1769899326698,0.10372,78283.0,78272.0,0.012793]
[1769899326900,0.29323688,78297.0,78272.0,0.012793]
[1769899327602,0.29323688,78297.0,78276.0,0.012792]
[1769899328604,0.27946196,78286.0,78251.0,0.012796]
[1769899328804,0.27946196,78279.0,78236.0,0.012799]
[1769899329017,0.27946196,78269.0,78241.0,0.012798]
[1769899329311,0.72046196,78278.0,78257.0,0.012795]
[1769899329503,0.38318196,78278.0,78257.0,0.012795]
[1769899329899,0.10372,78278.0,78262.0,0.012794]
[1769899330109,0.41492,78299.0,78238.0,0.012798]
[1769899330110,0.27946196,78297.0,78275.0,0.012792]
[1769899330706,0.48516,78300.0,78283.0,0.012791]
[1769899330707,0.10372,78300.0,78283.0,0.012791]
[1769899331708,0.27946196,78305.0,78283.0,0.012791]
[1769899332304,0.27941196,78305.0,78283.0,0.012791]
[1769899332814,0.27941196,78305.0,78279.0,0.10368]
[1769899333014,0.10368,78309.0,78280.0,0.27990159]
[1769899333316,0.10368,78309.0,78293.0,0.012789]
[1769899333608,0.10368,78309.0,78291.0,0.27990159]
[1769899333908,0.10368,78309.0,78290.0,0.10368]
[1769899333909,0.10368,78309.0,78296.0,0.012789]
[1769899334112,0.4982,78324.0,78282.0,0.10368]
[1769899334417,0.012785,78318.0,78272.0,0.10368]
[1769899334605,0.01279,78289.0,78266.0,0.10364]
[1769899334913,0.01279,78289.0,78237.0,1.113912]
[1769899334914,0.012793,78273.0,78255.0,0.10364]
[1769899335215,0.33708,78289.0,78250.0,0.10364]
[1769899335216,0.012793,78268.0,78250.0,0.10364]
[1769899335516,0.012777,78367.0,78268.0,0.27990159]
[1769899335706,0.012775,78379.0,78343.0,0.27990159]
[1769899335908,0.012775,78379.0,78345.0,0.27990159]
[1769899336108,0.012775,78379.0,78347.0,0.27990159]
[1769899336512,0.012776,78375.0,78347.0,0.27990159]
[1769899336813,0.012777,78371.0,78347.0,0.27990159]
[1769899337013,0.116416,78376.0,78347.0,0.27990159]
[1769899337314,0.012776,78373.0,78347.0,0.27990159]
[1769899339119,0.012777,78370.0,78347.0,0.27990159]
[1769899339317,0.012777,78366.0,78347.0,0.27990159]
[1769899339911,0.012777,78370.0,78347.0,0.27990159]
[1769899340315,0.012778,78365.0,78347.0,0.27990159]
[1769899340622,0.012777,78369.0,78347.0,0.27990159]
[1769899341217,0.10364,78376.0,78347.0,0.27990159]
[1769899341412,0.012778,78364.0,78347.0,0.27990159]
[1769899341611,0.1036,78363.0,78346.0,0.10364]
[1769899341913,0.063876,78383.0,78333.0,0.41464]
[1769899341914,0.1036,78362.0,78333.0,0.39352]
[1769899342119,0.012781,78345.0,78325.0,0.1036]
[1769899342311,0.012781,78342.0,78326.0,0.10356]
[1769899342718,0.012781,78346.0,78326.0,0.10356]
[1769899343113,0.012781,78343.0,78326.0,0.38346159]
[1769899343316,0.012781,78347.0,78326.0,0.38346159]
[1769899343517,0.012781,78347.0,78326.0,0.38446159]
[1769899344816,0.012781,78343.0,78326.0,0.38346159]
[1769899345813,1.819881,78342.0,78260.0,0.27990159]
[1769899346017,0.01279,78287.0,78266.0,0.27990159]
[1769899346317,0.01279,78287.0,78268.0,0.27990159]
[1769899346622,0.012791,78283.0,78268.0,0.27990159]
[1769899346824,9.178e-05,78282.0,78268.0,0.27990159]
[1769899347122,0.012791,78281.0,78268.0,0.27990159]
[1769899348624,9.178e-05,78282.0,78268.0,0.27990159]
[1769899350218,0.10365178,78282.0,78268.0,0.27990159]
[1769899350520,0.012791,78281.0,78268.0,0.27990159]
[1769899351521,0.10365178,78282.0,78237.0,0.28000286]
[1769899351725,0.012793,78271.0,78237.0,0.28000286]
[1769899351921,0.012797,78247.0,78237.0,0.28000286]
[1769899352120,8.99e-05,78246.0,78237.0,0.28000286]
[1769899352523,8.99e-05,78246.0,78237.0,0.00010127]
[1769899352723,0.012797,78245.0,78229.0,0.27990159]
[1769899352927,8.99e-05,78246.0,78229.0,0.27990159]
[1769899353127,0.012798,78242.0,78229.0,0.27990159]
[1769899353526,0.012798,78242.0,78227.0,0.10356]
[1769899354330,0.012798,78242.0,78195.0,0.012805]
[1769899354331,0.400832,78241.0,78201.0,5.9e-07]
[1769899354523,0.012803,78207.0,78201.0,5.9e-07]
[1769899354724,0.00013965,78206.0,78192.0,0.1036]
[1769899355130,0.012804,78205.0,78192.0,0.1036]
[1769899355930,0.012808,78178.0,78163.0,0.1036]
[1769899356126,0.012809,78176.0,78163.0,0.1036]
[1769899356427,0.012809,78176.0,78156.0,0.49336]
[1769899356428,0.012811,78162.0,78158.0,0.1036]
[1769899356627,0.012811,78162.0,78155.0,3.9e-07]
[1769899356833,0.012811,78160.0,78153.0,0.1036]
[1769899357027,0.00014709,78161.0,78144.0,0.12911366]
[1769899357332,0.012813,78147.0,78145.0,0.1036]
[1769899357538,0.012814,78143.0,78132.0,0.1036]
[1769899357739,0.1036,78160.0,78132.0,0.1036]
[1769899357939,0.01008545,78159.0,78132.0,0.1036]
[1769899358142,0.012815,78138.0,78132.0,0.10364]
[1769899358340,0.01008545,78159.0,78132.0,0.10364]
[1769899358732,0.012815,78136.0,78132.0,0.10364]
[1769899359143,0.012815,78136.0,78132.0,0.10359]
[1769899359339,0.1046,78160.0,78131.0,0.10364]
[1769899359639,0.37127916,78160.0,78131.0,0.10364]
[1769899360246,0.012814,78140.0,78131.0,0.10364]
[1769899360940,0.37027916,78160.0,78131.0,0.10364]
[1769899361140,0.37127916,78160.0,78131.0,0.10364]
[1769899361542,0.012815,78139.0,78131.0,0.10364]
[1769899361741,0.37027916,78160.0,78131.0,0.10364]
[1769899362340,0.012815,78135.0,78131.0,0.10364]
[1769899362545,0.012812,78156.0,78131.0,0.10359]
[1769899362847,0.064059,78159.0,78131.0,0.10359]
[1769899363049,0.012812,78157.0,78131.0,0.10359]
[1769899363450,0.012812,78155.0,78131.0,0.10359]
[1769899363749,0.012812,78152.0,78131.0,0.10359]
[1769899364437,0.1036,78160.0,78131.0,0.10359]
[1769899364642,0.012814,78141.0,78131.0,0.10359]
[1769899364842,0.012811,78158.0,78131.0,0.10359]
[1769899365237,0.001,78152.0,78131.0,0.10359]
[1769899365840,0.012815,78134.0,78124.0,0.49388]
[1769899366148,0.10372,78149.0,78129.0,0.10372]
[1769899366444,0.012816,78132.0,78125.0,0.10372]
[1769899366944,0.10372,78149.0,78125.0,0.10372]
[1769899367646,0.012816,78133.0,78125.0,0.10372]
[1769899369947,0.012816,78130.0,78125.0,0.10372]
[1769899370748,0.012816,78127.0,78124.0,0.49388]
[1769899370947,0.00868139,78127.0,78124.0,0.49388]
[1769899371146,0.012814,78142.0,78124.0,0.49388]
[1769899371850,0.012814,78141.0,78124.0,0.49388]
[1769899372648,0.01241322,78128.0,78124.0,0.49388]
[1769899373151,0.012816,78129.0,78124.0,0.49388]
[1769899373347,0.012817,78127.0,78121.0,0.10372]
[1769899374253,0.012814,78141.0,78121.0,0.10372]
[1769899375454,0.012816,78129.0,78121.0,0.10372]
[1769899376948,0.012816,78132.0,78121.0,0.10372]
[1769899377148,0.012814,78141.0,78121.0,0.10372]
[1769899377856,0.012816,78130.0,78121.0,0.10372]
[1769899379651,0.012816,78128.0,78121.0,0.10372]
[1769899380958,0.012816,78130.0,78121.0,0.10372]
[1769899382759,0.012814,78139.0,78121.0,0.10372]
[1769899382953,0.012814,78140.0,78121.0,0.10372]
[1769899383455,0.012816,78131.0,78121.0,0.10372]
[1769899383653,0.25468678,78170.0,78121.0,0.10372]
[1769899383654,0.10376,78152.0,78121.0,0.10372]
[1769899383958,0.012813,78151.0,78122.0,0.1279918]
[1769899384160,0.012812,78155.0,78130.0,0.26667916]
[1769899384357,0.012812,78155.0,78131.0,0.44196]
[1769899384549,0.012811,78160.0,78131.0,0.44196]
[1769899384754,0.012811,78161.0,78133.0,0.012815]
[1769899385461,0.012811,78161.0,78134.0,0.12796396]
[1769899387062,0.012811,78159.0,78141.0,0.012814]
[1769899387254,0.10376,78172.0,78149.0,0.26667916]
[1769899387457,0.15880307,78171.0,78147.0,0.012813]
[1769899387660,0.15880307,78171.0,78142.0,0.44116]
[1769899387661,0.01281,78168.0,78142.0,0.44116]
[1769899387861,0.01281,78168.0,78149.0,0.012813]
[1769899388161,0.01281,78166.0,78149.0,0.012813]
[1769899388456,0.01281,78166.0,78146.0,0.012813]
[1769899388660,0.01281,78166.0,78142.0,0.44116]
[1769899388661,0.012799,78232.0,78204.0,0.012804]
[1769899388866,0.012797,78248.0,78210.0,0.26667916]
[1769899388867,0.01082109,78247.0,78210.0,0.26667916]
[1769899389060,0.012798,78240.0,78215.0,0.012802]
[1769899389254,0.01082109,78247.0,78215.0,0.012802]
[1769899389459,0.012797,78245.0,78215.0,0.012802]
[1769899389663,0.012796,78250.0,78219.0,0.012801]
[1769899389863,0.012796,78254.0,78221.0,0.012801]
[1769899390055,0.01082109,78256.0,78228.0,0.0128]
[1769899390263,0.01092152,78253.0,78229.0,0.43713783]
[1769899390565,0.00940019,78236.0,78226.0,0.04957237]
[1769899390866,0.00940019,78236.0,78192.0,0.012806]
[1769899390867,0.012804,78204.0,78181.0,0.00999999]
[1769899391068,0.012804,78202.0,78181.0,0.00999999]
[1769899391260,0.10376,78201.0,78181.0,0.00999999]
[1769899393065,0.10376,78201.0,78181.0,0.02280699]
[1769899393368,0.10376,78201.0,78181.0,0.00999999]
[1769899393769,0.012804,78202.0,78181.0,0.00999999]
[1769899393971,0.012804,78206.0,78181.0,0.00999999]
[1769899394468,0.10451458,78214.0,78181.0,0.00999999]
[1769899394773,0.00054432,78213.0,78181.0,0.00999999]
[1769899395064,0.012804,78204.0,78181.0,0.00999999]
[1769899395270,0.10372,78203.0,78181.0,0.00999999]
[1769899397071,0.10372,78203.0,78182.0,0.012807]
[1769899397269,0.10372,78203.0,78181.0,0.00999999]
[1769899397772,0.10372,78203.0,78181.0,0.02280799]
[1769899398667,0.012804,78202.0,78181.0,0.00999999]
[1769899399164,0.00052067,78185.0,78154.0,0.11362227]
[1769899399370,0.012808,78177.0,78154.0,0.00990227]
[1769899399670,0.10372,78176.0,78154.0,0.00990227]
[1769899400067,0.00012527,78175.0,78151.0,0.10372]
[1769899400973,0.012809,78170.0,78151.0,0.10372]
[1769899401474,0.00012527,78175.0,78151.0,0.10372]
[1769899401475,0.012809,78174.0,78151.0,0.116532]
[1769899402072,0.01281,78169.0,78150.0,0.26667916]
[1769899402269,0.01281,78167.0,78150.0,0.26667916]
[1769899402475,0.10372,78166.0,78150.0,0.26667916]
[1769899404873,0.10372,78166.0,78150.0,0.27658143]
[1769899405075,0.10372,78166.0,78151.0,0.02271427]
[1769899405276,0.10372,78166.0,78151.0,0.00990227]
[1769899406777,0.10372,78166.0,78150.0,0.26667916]
[1769899407275,0.07683,78200.0,78150.0,0.26667916]
[1769899407276,0.012804,78205.0,78180.0,0.00990227]
[1769899407479,0.012804,78203.0,78181.0,0.02271027]
[1769899407681,0.10372,78202.0,78183.0,0.012807]
[1769899408283,0.10372,78202.0,78181.0,0.00990227]
[1769899408581,0.10372,78202.0,78187.0,0.012807]
[1769899409382,0.10372,78202.0,78181.0,0.00990227]
[1769899409575,0.10372,78202.0,78180.0,0.26667916]
[1769899409576,0.10372,78202.0,78188.0,0.012806]
[1769899409778,0.10372,78202.0,78186.0,0.012807]
[1769899409978,0.09982056,78202.0,78188.0,0.00990227]
[1769899410782,0.09982056,78202.0,78189.0,0.012806]
[1769899411084,0.09982056,78202.0,78192.0,0.00990227]
[1769899411885,0.09982056,78202.0,78192.0,0.02270827]
[1769899412280,0.09982056,78202.0,78192.0,0.00990227]
[1769899413084,0.012803,78211.0,78192.0,0.00990227]
[1769899413282,0.10372,78210.0,78192.0,0.00990227]
[1769899413888,0.116523,78210.0,78193.0,0.00990227]
[1769899415482,0.10372,78210.0,78193.0,0.00990227]
[1769899417086,0.10372,78210.0,78194.0,0.00990227]
[1769899417283,0.10372,78210.0,78195.0,0.00935519]
[1769899417484,0.012802,78216.0,78196.0,0.012805]
[1769899417675,0.10372,78215.0,78196.0,0.012805]
[1769899417878,0.10372,78215.0,78197.0,0.00935519]
[1769899419982,0.012802,78218.0,78198.0,0.012805]
[1769899420184,0.012802,78216.0,78198.0,0.012805]
[1769899420886,0.012802,78216.0,78198.0,0.02216019]
[1769899421582,0.10372,78217.0,78201.0,0.012804]
[1769899421786,0.116522,78217.0,78197.0,0.012805]
[1769899421983,0.116522,78217.0,78197.0,0.02252639]
[1769899422786,0.116522,78217.0,78198.0,0.00972139]
[1769899422981,0.10372,78217.0,78200.0,0.00972139]
[1769899423190,0.10372,78217.0,78203.0,0.012804]
[1769899423389,0.10372,78217.0,78205.0,0.012804]
[1769899423684,0.10372,78217.0,78189.0,0.012806]
[1769899423685,0.02206376,78186.0,78178.0,0.10368]
[1769899423884,0.02206376,78184.0,78172.0,0.10368]
[1769899424291,0.012807,78182.0,78172.0,0.10368]
[1769899424788,0.012807,78185.0,78172.0,0.10368]
[1769899424990,0.012808,78182.0,78172.0,0.10368]
[1769899425194,0.02206376,78185.0,78172.0,0.10368]
[1769899425384,0.012808,78181.0,78172.0,0.10368]
[1769899425584,0.012807,78184.0,78172.0,0.10368]
[1769899425890,0.012808,78181.0,78172.0,0.10368]
[1769899426491,0.00925676,78180.0,78170.0,0.10368]
[1769899427889,0.012808,78181.0,78170.0,0.10368]
[1769899428494,0.012808,78181.0,78163.0,0.50397]
[1769899428694,0.012808,78181.0,78170.0,0.10372]
[1769899429092,0.00925676,78185.0,78170.0,0.10372]
[1769899429595,0.00925676,78183.0,78170.0,0.10372]
[1769899429992,0.012808,78177.0,78168.0,0.10372]
[1769899430393,0.02206476,78181.0,78168.0,0.10372]
[1769899430696,0.012808,78179.0,78168.0,0.10372]
[1769899432197,0.012808,78179.0,78161.0,0.012811]
[1769899432386,0.00925676,78181.0,78156.0,0.00972139]
[1769899432387,0.00925676,78181.0,78164.0,0.20736004]
[1769899432597,0.00925676,78181.0,78163.0,0.012811]
[1769899432892,0.00925676,78181.0,78164.0,0.10368004]
[1769899433291,0.00925676,78181.0,78165.0,0.10368004]
[1769899433490,0.00925676,78181.0,78164.0,0.20736004]
[1769899433997,0.00925676,78181.0,78165.0,0.10368004]
[1769899434300,0.00925676,78181.0,78166.0,0.10368004]
[1769899434597,0.00925676,78181.0,78165.0,0.10368004]
[1769899434598,0.012808,78180.0,78165.0,0.10368004]
[1769899434998,0.012808,78180.0,78166.0,0.10368004]
[1769899435396,0.012808,78180.0,78167.0,0.10368004]
[1769899435691,0.012808,78180.0,78175.0,0.10368004]
[1769899435892,0.00925676,78200.0,78176.0,0.00972139]
[1769899436092,0.00925676,78206.0,78180.0,0.00972139]
[1769899436302,0.012805,78197.0,78182.0,0.00972139]
[1769899436497,0.00925676,78206.0,78182.0,0.00972139]
[1769899436794,0.00925676,78204.0,78182.0,0.00972139]
[1769899436995,0.00925676,78204.0,78183.0,0.00972139]
[1769899436996,0.15609185,78203.0,78183.0,0.00972139]
[1769899437193,0.15609185,78202.0,78183.0,0.11340143]
[1769899437392,0.00925676,78204.0,78184.0,0.11340143]
[1769899437592,0.012805,78200.0,78185.0,0.00972139]
[1769899437897,0.00925676,78208.0,78185.0,0.00972139]
[1769899438096,0.15560643,78207.0,78185.0,0.00972139]
[1769899438296,0.15560643,78206.0,78185.0,0.11340139]
[1769899438594,0.00925676,78213.0,78193.0,0.10368004]
[1769899438799,0.012804,78206.0,78192.0,0.10372]
[1769899439001,0.012804,78206.0,78192.0,0.20740004]
[1769899439194,0.012804,78206.0,78197.0,0.10368004]
[1769899439391,0.012803,78207.0,78197.0,0.10368004]
[1769899439593,0.012804,78204.0,78197.0,0.10368004]
[1769899440001,0.012804,78204.0,78192.0,0.10372]
[1769899440201,0.012804,78204.0,78193.0,0.10368]
[1769899440700,0.012804,78205.0,78193.0,0.10368]
[1769899440894,0.012804,78205.0,78194.0,0.00972139]
[1769899441898,0.00925676,78195.0,78174.0,0.10372]
[1769899442102,0.012808,78180.0,78174.0,0.10372]
[1769899442304,0.012807,78184.0,78174.0,0.10372]
[1769899442495,0.00925676,78183.0,78155.0,0.11344139]
[1769899442694,0.10372,78185.0,78155.0,0.10372]
[1769899442695,0.00925676,78180.0,78155.0,0.10372]
[1769899442895,0.00925676,78177.0,78155.0,0.10372]
[1769899443102,0.00925676,78175.0,78155.0,0.10372]
[1769899443602,0.01281,78169.0,78155.0,0.10372]
[1769899443815,0.00925676,78175.0,78155.0,0.10372]
[1769899443996,0.012811,78164.0,78155.0,0.10372]
[1769899444597,0.012811,78162.0,78155.0,0.10372]
[1769899444792,0.012811,78162.0,78148.0,0.10372]
[1769899445299,0.012811,78160.0,78148.0,0.10372]
[1769899445498,0.012811,78160.0,78148.0,0.09979027]
[1769899446203,0.02206776,78160.0,78148.0,0.09979027]
[1769899446592,0.00925676,78160.0,78139.0,0.10372]
[1769899446806,0.012812,78157.0,78139.0,0.10372]
[1769899447003,0.012812,78157.0,78140.0,0.10368]
[1769899447203,0.012812,78154.0,78140.0,0.20740004]
[1769899447406,0.012812,78154.0,78140.0,0.10368]
[1769899447705,0.012812,78152.0,78141.0,0.10372004]
[1769899448006,0.012812,78152.0,78139.0,0.2074]
[1769899448204,0.012812,78152.0,78142.0,0.10372004]
[1769899448500,0.012813,78150.0,78142.0,0.10372004]
[1769899448708,0.012813,78150.0,78139.0,0.10372]
[1769899449004,0.10372,78156.0,78140.0,0.10368]
[1769899449005,0.012813,78148.0,78140.0,0.10368]
[1769899449202,0.10372,78156.0,78140.0,0.10368]
[1769899449503,0.012813,78148.0,78139.0,0.10372]
[1769899449906,0.009065,78155.0,78139.0,0.10372]
[1769899450102,0.012813,78149.0,78139.0,0.10372]